[Event "Titled Tuesday Blitz August 22 Late 2023"]
[White "Shapiro, Viktor"]
[Black "Annaberdiyev, Meylis"]
[WhiteFideId "4175700"]
[BlackFideId "14000563"]
[WhiteElo "2551"]
[BlackElo "2670"]
[Result "1-0"]
[Round "9"]
[TimeControl "180+1"]
[Date "2023.08.22"]
[WhiteClock "0:00:10"]
[BlackClock "0:00:00"]
[Board "39"]

1. c4 {[%clk 0:03:00]}  e5 {[%clk 0:02:59]} 2. Nc3 {[%clk 0:03:01]}  Nc6 {[%clk 0:03:00]} 3. g3 {[%clk 0:03:01]}  Bc5 {[%clk 0:03:00]} 4. Bg2 {[%clk 0:03:01]}  d6 {[%clk 0:03:01]} 5. e3 {[%clk 0:03:02]}  a6 {[%clk 0:03:01]} 6. Nge2 {[%clk 0:03:02]}  Ba7 {[%clk 0:03:00]} 7. d4 {[%clk 0:03:01]}  Nge7 {[%clk 0:03:00]} 8. O-O {[%clk 0:03:00]}  h5 {[%clk 0:03:00]} 9. h3 {[%clk 0:02:59]}  h4 {[%clk 0:03:00]} 10. g4 {[%clk 0:02:59]}  f5 {[%clk 0:03:01]} 11. g5 {[%clk 0:02:51]}  Ng6 {[%clk 0:02:45]} 12. f4 {[%clk 0:02:50]}  O-O {[%clk 0:02:23]} 13. Bd5+ {[%clk 0:02:35]}  Rf7 {[%clk 0:02:23]} 14. dxe5 {[%clk 0:02:02]}  dxe5 {[%clk 0:02:22]} 15. Bxf7+ {[%clk 0:02:02]}  Kxf7 {[%clk 0:02:23]} 16. Qxd8 {[%clk 0:02:03]}  Nxd8 {[%clk 0:02:23]} 17. Kh2 {[%clk 0:01:34]}  e4 {[%clk 0:01:53]} 18. Rd1 {[%clk 0:01:27]}  Ne6 {[%clk 0:01:50]} 19. b4 {[%clk 0:01:16]}  a5 {[%clk 0:01:37]} 20. a3 {[%clk 0:01:11]}  c6 {[%clk 0:01:32]} 21. c5 {[%clk 0:01:04]}  Bb8 {[%clk 0:01:32]} 22. Bb2 {[%clk 0:00:53]}  Nxg5 {[%clk 0:01:31]} 23. Rd8 {[%clk 0:00:42]}  Bc7 {[%clk 0:01:27]} 24. Rdd1 {[%clk 0:00:29]}  Ne7 {[%clk 0:01:20]} 25. Kg2 {[%clk 0:00:27]}  Nf3 {[%clk 0:01:20]} 26. Nd4 {[%clk 0:00:24]}  Nxd4 {[%clk 0:01:19]} 27. Rxd4 {[%clk 0:00:24]}  Be6 {[%clk 0:01:19]} 28. b5 {[%clk 0:00:20]}  Rg8 {[%clk 0:01:16]} 29. b6 {[%clk 0:00:19]}  Bb8 {[%clk 0:01:16]} 30. Rad1 {[%clk 0:00:19]}  g5 {[%clk 0:01:16]} 31. fxg5 {[%clk 0:00:20]}  Rxg5+ {[%clk 0:01:16]} 32. Kf1 {[%clk 0:00:20]}  Rg3 {[%clk 0:01:09]} 33. Rd8 {[%clk 0:00:19]}  Be5 {[%clk 0:01:08]} 34. Nxe4 {[%clk 0:00:18]}  Bc4+ {[%clk 0:01:01]} 35. Kf2 {[%clk 0:00:17]}  fxe4 {[%clk 0:00:21]} 36. Bxe5 {[%clk 0:00:17]}  Rf3+ {[%clk 0:00:22]} 37. Kg2 {[%clk 0:00:17]}  Nd5 {[%clk 0:00:23]} 38. Bd4 {[%clk 0:00:14]}  Ke6 {[%clk 0:00:12]} 39. Rb8 {[%clk 0:00:13]}  Ba6 {[%clk 0:00:12]} 40. Kh2 {[%clk 0:00:11]}  Nxe3 {[%clk 0:00:12]} 41. Bxe3 {[%clk 0:00:12]}  Rxe3 {[%clk 0:00:13]} 42. Rd6+ {[%clk 0:00:12]}  Kf7 {[%clk 0:00:12]} 43. Rh6 {[%clk 0:00:12]}  Re2+ {[%clk 0:00:12]} 44. Kg1 {[%clk 0:00:12]}  e3 {[%clk 0:00:12]} 45. Rxh4 {[%clk 0:00:13]}  Re1+ {[%clk 0:00:12]} 46. Kg2 {[%clk 0:00:12]}  e2 {[%clk 0:00:13]} 47. Re4 {[%clk 0:00:13]}  Bc4 {[%clk 0:00:11]} 48. Rxb7+ {[%clk 0:00:12]}  Kf6 {[%clk 0:00:12]} 49. Re3 {[%clk 0:00:10]}  Rb1 {[%clk 0:00:11]} 50. Rbe7 {[%clk 0:00:09]}  Rb2 {[%clk 0:00:08]} 51. Kg3 {[%clk 0:00:09]}  Rb3 {[%clk 0:00:09]} 52. Kf2 {[%clk 0:00:09]}  Rb1 {[%clk 0:00:08]} 53. Rxe2 {[%clk 0:00:09]}  Bxe2 {[%clk 0:00:09]} 54. Rxe2 {[%clk 0:00:08]}  a4 {[%clk 0:00:08]} 55. Ke3 {[%clk 0:00:08]}  Rb3+ {[%clk 0:00:08]} 56. Kd4 {[%clk 0:00:08]}  Rxa3 {[%clk 0:00:09]} 57. Rb2 {[%clk 0:00:08]}  Ra1 {[%clk 0:00:04]} 58. b7 {[%clk 0:00:08]}  Rd1+ {[%clk 0:00:05]} 59. Kc3 {[%clk 0:00:08]}  a3 {[%clk 0:00:06]} 60. b8=Q {[%clk 0:00:08]}  axb2 {[%clk 0:00:06]} 61. Qxb2 {[%clk 0:00:08]}  Rd5 {[%clk 0:00:06]} 62. Kc4+ {[%clk 0:00:08]}  Ke6 {[%clk 0:00:07]} 63. Qe2+ {[%clk 0:00:08]}  Kd7 {[%clk 0:00:07]} 64. Qg4+ {[%clk 0:00:08]}  Kc7 {[%clk 0:00:07]} 65. h4 {[%clk 0:00:09]}  Rd2 {[%clk 0:00:05]} 66. h5 {[%clk 0:00:09]}  Rc2+ {[%clk 0:00:05]} 67. Kd4 {[%clk 0:00:09]}  Ra2 {[%clk 0:00:05]} 68. Qg7+ {[%clk 0:00:09]}  Kd8 {[%clk 0:00:00]} 69. Qg8+ {[%clk 0:00:10]} 1-0


[Site "https://www.chess.com"]

[Event "Titled Tuesday Blitz August 22 Late 2023"]
[White "only_strong_moves"]
[Black "Shuvalova, Polina"]
[BlackFideId "24171760"]
[WhiteElo "2520"]
[BlackElo "2659"]
[Result "0-1"]
[Round "9"]
[TimeControl "180+1"]
[Date "2023.08.22"]
[WhiteClock "0:00:10"]
[BlackClock "0:00:08"]
[Board "42"]

1. d4 {[%clk 0:03:00]}  Nf6 {[%clk 0:02:59]} 2. Nc3 {[%clk 0:03:01]}  d5 {[%clk 0:02:59]} 3. Bf4 {[%clk 0:03:01]}  a6 {[%clk 0:02:58]} 4. e3 {[%clk 0:03:01]}  b5 {[%clk 0:02:55]} 5. Nf3 {[%clk 0:02:59]}  Nbd7 {[%clk 0:02:55]} 6. Ne5 {[%clk 0:02:58]}  Bb7 {[%clk 0:02:53]} 7. Be2 {[%clk 0:02:51]}  e6 {[%clk 0:02:53]} 8. O-O {[%clk 0:02:51]}  c5 {[%clk 0:02:51]} 9. dxc5 {[%clk 0:02:46]}  Bxc5 {[%clk 0:02:50]} 10. Bf3 {[%clk 0:02:35]}  O-O {[%clk 0:02:48]} 11. Ne2 {[%clk 0:02:33]}  Rc8 {[%clk 0:02:47]} 12. c3 {[%clk 0:02:23]}  a5 {[%clk 0:02:40]} 13. Nd3 {[%clk 0:02:14]}  Bb6 {[%clk 0:02:33]} 14. a4 {[%clk 0:02:10]}  bxa4 {[%clk 0:02:31]} 15. Rxa4 {[%clk 0:02:01]}  Qe7 {[%clk 0:02:31]} 16. Ne5 {[%clk 0:01:44]}  Nxe5 {[%clk 0:02:25]} 17. Bxe5 {[%clk 0:01:45]}  Nd7 {[%clk 0:02:24]} 18. Bg3 {[%clk 0:01:26]}  Nc5 {[%clk 0:02:15]} 19. Ra1 {[%clk 0:01:26]}  a4 {[%clk 0:02:13]} 20. Nd4 {[%clk 0:01:22]}  Rfd8 {[%clk 0:02:13]} 21. Be2 {[%clk 0:01:07]}  g6 {[%clk 0:02:08]} 22. Bb5 {[%clk 0:01:06]}  e5 {[%clk 0:02:08]} 23. Nf3 {[%clk 0:01:06]}  f6 {[%clk 0:02:00]} 24. Bxa4 {[%clk 0:01:06]}  Nxa4 {[%clk 0:01:48]} 25. Qxa4 {[%clk 0:01:07]}  Bc6 {[%clk 0:01:48]} 26. Qa6 {[%clk 0:01:00]}  Qb7 {[%clk 0:01:41]} 27. Qxb7 {[%clk 0:00:43]}  Bxb7 {[%clk 0:01:41]} 28. Ra3 {[%clk 0:00:43]}  Bc5 {[%clk 0:01:26]} 29. Rb3 {[%clk 0:00:41]}  Bc6 {[%clk 0:01:24]} 30. h4 {[%clk 0:00:05]}  h5 {[%clk 0:01:16]} 31. Ra1 {[%clk 0:00:03]}  Ra8 {[%clk 0:01:15]} 32. Rc1 {[%clk 0:00:02]}  Ra7 {[%clk 0:01:14]} 33. c4 {[%clk 0:00:02]}  Ba4 {[%clk 0:01:09]} 34. Rd3 {[%clk 0:00:01]}  Rad7 {[%clk 0:00:58]} 35. cxd5 {[%clk 0:00:01]}  Rxd5 {[%clk 0:00:59]} 36. Rxd5 {[%clk 0:00:02]}  Rxd5 {[%clk 0:01:00]} 37. e4 {[%clk 0:00:02]}  Rd1+ {[%clk 0:01:00]} 38. Rxd1 {[%clk 0:00:03]}  Bxd1 {[%clk 0:01:00]} 39. Nd2 {[%clk 0:00:02]}  Bc2 {[%clk 0:00:56]} 40. Kh2 {[%clk 0:00:03]}  Bb4 {[%clk 0:00:55]} 41. Nc4 {[%clk 0:00:02]}  Bxe4 {[%clk 0:00:55]} 42. f4 {[%clk 0:00:03]}  Bd3 {[%clk 0:00:53]} 43. Ne3 {[%clk 0:00:02]}  exf4 {[%clk 0:00:36]} 44. Bxf4 {[%clk 0:00:03]}  Kf7 {[%clk 0:00:36]} 45. Nd5 {[%clk 0:00:04]}  Bc5 {[%clk 0:00:36]} 46. Nc3 {[%clk 0:00:04]}  Bc4 {[%clk 0:00:35]} 47. Bd2 {[%clk 0:00:04]}  Bb3 {[%clk 0:00:35]} 48. Bf4 {[%clk 0:00:03]}  Bd4 {[%clk 0:00:34]} 49. Kg3 {[%clk 0:00:02]}  Ke6 {[%clk 0:00:35]} 50. Kf3 {[%clk 0:00:02]}  Kf5 {[%clk 0:00:34]} 51. g3 {[%clk 0:00:02]}  g5 {[%clk 0:00:34]} 52. hxg5 {[%clk 0:00:02]}  fxg5 {[%clk 0:00:35]} 53. Bc7 {[%clk 0:00:03]}  Bc2 {[%clk 0:00:32]} 54. Bd8 {[%clk 0:00:03]}  Bd3 {[%clk 0:00:25]} 55. Kg2 {[%clk 0:00:03]}  Ba6 {[%clk 0:00:24]} 56. Kf3 {[%clk 0:00:03]}  Bb7+ {[%clk 0:00:24]} 57. Ke2 {[%clk 0:00:03]}  Kg4 {[%clk 0:00:24]} 58. Kd3 {[%clk 0:00:03]}  Be5 {[%clk 0:00:23]} 59. Ne2 {[%clk 0:00:03]}  Bxb2 {[%clk 0:00:20]} 60. Nc3 {[%clk 0:00:02]}  Bc1 {[%clk 0:00:15]} 61. Ne2 {[%clk 0:00:02]}  Ba3 {[%clk 0:00:14]} 62. Nc3 {[%clk 0:00:03]}  Bd6 {[%clk 0:00:15]} 63. Ne4 {[%clk 0:00:03]}  Bxe4+ {[%clk 0:00:15]} 64. Kxe4 {[%clk 0:00:04]}  Bxg3 {[%clk 0:00:16]} 65. Ke3 {[%clk 0:00:04]}  Bf4+ {[%clk 0:00:14]} 66. Kf2 {[%clk 0:00:05]}  Kf5 {[%clk 0:00:13]} 67. Kg2 {[%clk 0:00:05]}  Be5 {[%clk 0:00:08]} 68. Bb6 {[%clk 0:00:06]}  g4 {[%clk 0:00:08]} 69. Be3 {[%clk 0:00:07]}  Bf4 {[%clk 0:00:08]} 70. Bd4 {[%clk 0:00:07]}  h4 {[%clk 0:00:08]} 71. Bf2 {[%clk 0:00:08]}  h3+ {[%clk 0:00:09]} 72. Kg1 {[%clk 0:00:08]}  Ke4 {[%clk 0:00:10]} 73. Kh1 {[%clk 0:00:07]}  Kf3 {[%clk 0:00:10]} 74. Bg1 {[%clk 0:00:08]}  g3 {[%clk 0:00:05]} 75. Be3 {[%clk 0:00:09]}  g2+ {[%clk 0:00:05]} 76. Kg1 {[%clk 0:00:08]}  Bxe3+ {[%clk 0:00:06]} 77. Kh2 {[%clk 0:00:09]}  g1=Q+ {[%clk 0:00:07]} 78. Kxh3 {[%clk 0:00:10]}  Qg3# {[%clk 0:00:08]} 0-1


[Site "https://www.chess.com"]

[Event "Titled Tuesday Blitz August 22 Late 2023"]
[White "Colpe, Malte"]
[Black "Omelja, Artem"]
[WhiteFideId "24623075"]
[BlackFideId "14119846"]
[WhiteElo "2478"]
[BlackElo "2647"]
[Result "0-1"]
[Round "9"]
[TimeControl "180+1"]
[Date "2023.08.22"]
[WhiteClock "0:01:06"]
[BlackClock "0:01:32"]
[Board "45"]

1. d4 {[%clk 0:02:58]}  Nf6 {[%clk 0:02:59]} 2. c4 {[%clk 0:02:57]}  e6 {[%clk 0:02:59]} 3. Nc3 {[%clk 0:02:56]}  d5 {[%clk 0:02:59]} 4. Nf3 {[%clk 0:02:52]}  c6 {[%clk 0:02:59]} 5. Bg5 {[%clk 0:02:48]}  Be7 {[%clk 0:02:59]} 6. e3 {[%clk 0:02:48]}  h6 {[%clk 0:02:59]} 7. Bf4 {[%clk 0:02:46]}  Nbd7 {[%clk 0:02:46]} 8. h3 {[%clk 0:02:42]}  O-O {[%clk 0:02:41]} 9. Qc2 {[%clk 0:02:41]}  a6 {[%clk 0:02:38]} 10. cxd5 {[%clk 0:02:37]}  Nxd5 {[%clk 0:02:33]} 11. Bh2 {[%clk 0:02:35]}  Nxc3 {[%clk 0:02:12]} 12. bxc3 {[%clk 0:02:34]}  c5 {[%clk 0:02:13]} 13. Bd3 {[%clk 0:02:29]}  b6 {[%clk 0:02:13]} 14. Be4 {[%clk 0:02:23]}  Ra7 {[%clk 0:02:13]} 15. O-O {[%clk 0:02:16]}  Bb7 {[%clk 0:02:13]} 16. Bxb7 {[%clk 0:02:04]}  Rxb7 {[%clk 0:02:14]} 17. a4 {[%clk 0:01:55]}  Qc8 {[%clk 0:02:12]} 18. Qd3 {[%clk 0:01:52]}  b5 {[%clk 0:02:07]} 19. axb5 {[%clk 0:01:51]}  axb5 {[%clk 0:02:08]} 20. e4 {[%clk 0:01:49]}  b4 {[%clk 0:01:51]} 21. cxb4 {[%clk 0:01:35]}  Rxb4 {[%clk 0:01:45]} 22. d5 {[%clk 0:01:35]}  exd5 {[%clk 0:01:43]} 23. exd5 {[%clk 0:01:35]}  c4 {[%clk 0:01:39]} 24. Qe2 {[%clk 0:01:24]}  Bf6 {[%clk 0:01:37]} 25. Rac1 {[%clk 0:01:24]}  Re8 {[%clk 0:01:36]} 26. Qa2 {[%clk 0:01:19]}  c3 {[%clk 0:01:33]} 27. Bf4 {[%clk 0:01:06]}  Rxf4 {[%clk 0:01:32]} 0-1


[Site "https://www.chess.com"]

[Event "Titled Tuesday Blitz August 22 Late 2023"]
[White "Papayan, Oleg"]
[Black "Shohat, Yotam"]
[WhiteFideId "4193911"]
[BlackFideId "2813955"]
[WhiteElo "2615"]
[BlackElo "2470"]
[Result "1-0"]
[Round "9"]
[TimeControl "180+1"]
[Date "2023.08.22"]
[WhiteClock "0:00:16"]
[BlackClock "0:00:05"]
[Board "47"]

1. e4 {[%clk 0:03:00]}  e5 {[%clk 0:02:59]} 2. Nf3 {[%clk 0:02:58]}  Nc6 {[%clk 0:02:59]} 3. Bb5 {[%clk 0:02:59]}  a6 {[%clk 0:02:59]} 4. Bxc6 {[%clk 0:02:58]}  dxc6 {[%clk 0:02:59]} 5. Nc3 {[%clk 0:02:58]}  f6 {[%clk 0:02:57]} 6. d4 {[%clk 0:02:58]}  Bg4 {[%clk 0:02:42]} 7. dxe5 {[%clk 0:02:56]}  Qxd1+ {[%clk 0:02:41]} 8. Nxd1 {[%clk 0:02:57]}  Bxf3 {[%clk 0:02:40]} 9. gxf3 {[%clk 0:02:58]}  fxe5 {[%clk 0:02:41]} 10. f4 {[%clk 0:02:58]}  Nf6 {[%clk 0:02:36]} 11. f3 {[%clk 0:02:56]}  exf4 {[%clk 0:02:20]} 12. Bxf4 {[%clk 0:02:57]}  Bd6 {[%clk 0:02:11]} 13. Bg3 {[%clk 0:02:57]}  Bxg3+ {[%clk 0:02:04]} 14. hxg3 {[%clk 0:02:56]}  Kf7 {[%clk 0:02:02]} 15. Ne3 {[%clk 0:02:54]}  Rad8 {[%clk 0:02:02]} 16. Ke2 {[%clk 0:02:54]}  Rd7 {[%clk 0:02:02]} 17. g4 {[%clk 0:02:49]}  h6 {[%clk 0:01:59]} 18. g5 {[%clk 0:02:48]}  Ng8 {[%clk 0:01:48]} 19. Rag1 {[%clk 0:02:48]}  Ne7 {[%clk 0:01:47]} 20. gxh6 {[%clk 0:02:45]}  Rxh6 {[%clk 0:01:48]} 21. Rxh6 {[%clk 0:02:33]}  gxh6 {[%clk 0:01:48]} 22. Ng4 {[%clk 0:02:33]}  Rd6 {[%clk 0:01:48]} 23. f4 {[%clk 0:02:28]}  c5 {[%clk 0:01:11]} 24. f5 {[%clk 0:02:24]}  Nc6 {[%clk 0:01:07]} 25. c3 {[%clk 0:02:20]}  h5 {[%clk 0:01:04]} 26. Nf2 {[%clk 0:02:08]}  Ne5 {[%clk 0:01:01]} 27. Rh1 {[%clk 0:02:05]}  Rh6 {[%clk 0:00:58]} 28. Ke3 {[%clk 0:01:55]}  Kf6 {[%clk 0:00:53]} 29. Kf4 {[%clk 0:01:50]}  c4 {[%clk 0:00:47]} 30. Rd1 {[%clk 0:01:36]}  h4 {[%clk 0:00:47]} 31. Rd5 {[%clk 0:01:33]}  Nd3+ {[%clk 0:00:41]} 32. Nxd3 {[%clk 0:01:30]}  cxd3 {[%clk 0:00:42]} 33. e5+ {[%clk 0:01:30]}  Ke7 {[%clk 0:00:42]} 34. Rxd3 {[%clk 0:01:27]}  h3 {[%clk 0:00:42]} 35. Rd1 {[%clk 0:01:27]}  h2 {[%clk 0:00:40]} 36. Rh1 {[%clk 0:01:26]}  Rh4+ {[%clk 0:00:39]} 37. Kg3 {[%clk 0:01:25]}  Re4 {[%clk 0:00:39]} 38. Rxh2 {[%clk 0:01:24]}  Rxe5 {[%clk 0:00:39]} 39. Kf4 {[%clk 0:01:13]}  Rb5 {[%clk 0:00:37]} 40. Kg5 {[%clk 0:01:03]}  Rb6 {[%clk 0:00:30]} 41. Rh7+ {[%clk 0:00:56]}  Kd8 {[%clk 0:00:29]} 42. f6 {[%clk 0:00:43]}  Rxb2 {[%clk 0:00:29]} 43. Rh8+ {[%clk 0:00:43]}  Kd7 {[%clk 0:00:27]} 44. f7 {[%clk 0:00:43]}  Rg2+ {[%clk 0:00:25]} 45. Kh6 {[%clk 0:00:35]}  Rh2+ {[%clk 0:00:26]} 46. Kg7 {[%clk 0:00:35]}  Rg2+ {[%clk 0:00:26]} 47. Kf8 {[%clk 0:00:35]}  Rxa2 {[%clk 0:00:19]} 48. Rg8 {[%clk 0:00:28]}  Rf2 {[%clk 0:00:18]} 49. Kg7 {[%clk 0:00:28]}  a5 {[%clk 0:00:17]} 50. f8=Q {[%clk 0:00:25]}  Rxf8 {[%clk 0:00:17]} 51. Rxf8 {[%clk 0:00:25]}  a4 {[%clk 0:00:16]} 52. Kf6 {[%clk 0:00:25]}  Kd6 {[%clk 0:00:16]} 53. Kf5 {[%clk 0:00:19]}  Kd5 {[%clk 0:00:16]} 54. Rb8 {[%clk 0:00:16]}  b6 {[%clk 0:00:15]} 55. Rb7 {[%clk 0:00:17]}  Kc6 {[%clk 0:00:10]} 56. Ra7 {[%clk 0:00:17]}  b5 {[%clk 0:00:10]} 57. Ke4 {[%clk 0:00:17]}  Kb6 {[%clk 0:00:10]} 58. Ra8 {[%clk 0:00:17]}  Kb7 {[%clk 0:00:07]} 59. Rg8 {[%clk 0:00:16]}  Kb6 {[%clk 0:00:07]} 60. Kd5 {[%clk 0:00:15]}  c6+ {[%clk 0:00:07]} 61. Kd4 {[%clk 0:00:16]}  c5+ {[%clk 0:00:05]} 62. Kd5 {[%clk 0:00:16]}  b4 {[%clk 0:00:06]} 63. cxb4 {[%clk 0:00:16]}  cxb4 {[%clk 0:00:07]} 64. Kc4 {[%clk 0:00:16]}  a3 {[%clk 0:00:07]} 65. Kxb4 {[%clk 0:00:17]}  a2 {[%clk 0:00:05]} 66. Ra8 {[%clk 0:00:16]} 1-0


[Site "https://www.chess.com"]

[Event "Titled Tuesday Blitz August 22 Late 2023"]
[White "Leenhouts, Koen"]
[Black "Delorme, Axel"]
[WhiteFideId "1008439"]
[BlackFideId "632023"]
[WhiteElo "2599"]
[BlackElo "2407"]
[Result "1-0"]
[Round "9"]
[TimeControl "180+1"]
[Date "2023.08.22"]
[WhiteClock "0:01:58"]
[BlackClock "0:00:53"]
[Board "50"]

1. d4 {[%clk 0:03:00]}  Nf6 {[%clk 0:02:09]} 2. c4 {[%clk 0:02:58]}  e6 {[%clk 0:02:06]} 3. Nc3 {[%clk 0:02:58]}  d5 {[%clk 0:02:00]} 4. cxd5 {[%clk 0:02:56]}  exd5 {[%clk 0:02:00]} 5. Bg5 {[%clk 0:02:56]}  Nbd7 {[%clk 0:01:52]} 6. Qc2 {[%clk 0:02:55]}  Be7 {[%clk 0:01:49]} 7. e3 {[%clk 0:02:53]}  O-O {[%clk 0:01:25]} 8. Bd3 {[%clk 0:02:49]}  b6 {[%clk 0:01:13]} 9. Nf3 {[%clk 0:02:44]}  Bb7 {[%clk 0:01:13]} 10. O-O {[%clk 0:02:44]}  c5 {[%clk 0:01:08]} 11. Rad1 {[%clk 0:02:39]}  g6 {[%clk 0:01:06]} 12. dxc5 {[%clk 0:02:35]}  bxc5 {[%clk 0:01:04]} 13. Rfe1 {[%clk 0:02:24]}  Rc8 {[%clk 0:01:03]} 14. Qa4 {[%clk 0:02:18]}  Qb6 {[%clk 0:01:00]} 15. Bb5 {[%clk 0:02:09]}  Rfd8 {[%clk 0:00:58]} 16. Bxd7 {[%clk 0:02:05]}  Rxd7 {[%clk 0:00:55]} 17. Bxf6 {[%clk 0:02:00]}  Bc6 {[%clk 0:00:53]} 18. Qh4 {[%clk 0:01:58]} 1-0


[Site "https://www.chess.com"]

[Event "Titled Tuesday Blitz August 22 Late 2023"]
[White "Ovezdurdyyeva, Jemal"]
[Black "Hambleton, Aman"]
[WhiteFideId "14001888"]
[BlackFideId "2606577"]
[WhiteElo "2418"]
[BlackElo "2782"]
[Result "1-0"]
[Round "9"]
[TimeControl "180+1"]
[Date "2023.08.22"]
[WhiteClock "0:00:51"]
[BlackClock "0:00:00"]
[Board "51"]

1. e4 {[%clk 0:03:00]}  b6 {[%clk 0:02:23]} 2. d4 {[%clk 0:02:59]}  Bb7 {[%clk 0:02:12]} 3. Bd3 {[%clk 0:02:59]}  e6 {[%clk 0:02:11]} 4. c4 {[%clk 0:02:59]}  Bb4+ {[%clk 0:02:02]} 5. Nc3 {[%clk 0:02:59]}  Bxc3+ {[%clk 0:01:54]} 6. bxc3 {[%clk 0:02:58]}  d6 {[%clk 0:01:55]} 7. Ne2 {[%clk 0:02:55]}  Nd7 {[%clk 0:01:39]} 8. O-O {[%clk 0:02:56]}  Ne7 {[%clk 0:01:35]} 9. f4 {[%clk 0:02:46]}  f5 {[%clk 0:00:50]} 10. Ng3 {[%clk 0:02:44]}  g6 {[%clk 0:00:49]} 11. d5 {[%clk 0:02:40]}  Nc5 {[%clk 0:00:32]} 12. exf5 {[%clk 0:02:36]}  exf5 {[%clk 0:00:12]} 13. Bxf5 {[%clk 0:02:17]}  gxf5 {[%clk 0:00:08]} 14. Qh5+ {[%clk 0:02:17]}  Kd7 {[%clk 0:00:09]} 15. Nxf5 {[%clk 0:02:17]}  Qf8 {[%clk 0:00:02]} 16. Nd4 {[%clk 0:02:10]}  Re8 {[%clk 0:00:01]} 17. Qh3+ {[%clk 0:02:08]}  Kd8 {[%clk 0:00:02]} 18. Ba3 {[%clk 0:02:08]}  Bc8 {[%clk 0:00:02]} 19. Qh4 {[%clk 0:02:05]}  Bd7 {[%clk 0:00:02]} 20. f5 {[%clk 0:01:24]}  Kc8 {[%clk 0:00:02]} 21. Rae1 {[%clk 0:01:19]}  Qf7 {[%clk 0:00:02]} 22. Re2 {[%clk 0:01:09]}  Nxf5 {[%clk 0:00:00]} 23. Nxf5 {[%clk 0:00:51]} 1-0


[Site "https://www.chess.com"]

[Event "Titled Tuesday Blitz August 22 Late 2023"]
[White "Gurevich, Dmitry"]
[Black "GaiozNigalidze"]
[WhiteFideId "2000407"]
[WhiteElo "2530"]
[BlackElo "2690"]
[Result "1-0"]
[Round "9"]
[TimeControl "180+1"]
[Date "2023.08.22"]
[WhiteClock "0:00:07"]
[BlackClock "0:00:00"]
[Board "53"]

1. d4 {[%clk 0:03:00]}  Nf6 {[%clk 0:02:59]} 2. c4 {[%clk 0:03:00]}  c5 {[%clk 0:03:00]} 3. Nf3 {[%clk 0:02:59]}  cxd4 {[%clk 0:02:59]} 4. Nxd4 {[%clk 0:02:59]}  e5 {[%clk 0:03:00]} 5. Nb5 {[%clk 0:02:59]}  d5 {[%clk 0:03:01]} 6. cxd5 {[%clk 0:02:58]}  Bc5 {[%clk 0:03:01]} 7. N5c3 {[%clk 0:02:58]}  O-O {[%clk 0:03:00]} 8. g3 {[%clk 0:02:58]}  Qb6 {[%clk 0:02:54]} 9. e3 {[%clk 0:02:57]}  Bg4 {[%clk 0:02:54]} 10. Be2 {[%clk 0:02:53]}  Bh3 {[%clk 0:02:52]} 11. g4 {[%clk 0:02:42]}  Rd8 {[%clk 0:02:26]} 12. Rg1 {[%clk 0:02:41]}  h5 {[%clk 0:01:39]} 13. gxh5 {[%clk 0:02:40]}  Bb4 {[%clk 0:01:28]} 14. h6 {[%clk 0:02:29]}  g6 {[%clk 0:01:28]} 15. Bd2 {[%clk 0:01:58]}  Nxd5 {[%clk 0:01:21]} 16. Qc2 {[%clk 0:01:47]}  Na6 {[%clk 0:01:03]} 17. Nxd5 {[%clk 0:01:30]}  Rxd5 {[%clk 0:01:02]} 18. Bc4 {[%clk 0:01:30]}  Rc8 {[%clk 0:00:37]} 19. Rxg6+ {[%clk 0:01:22]}  fxg6 {[%clk 0:00:33]} 20. Bxd5+ {[%clk 0:01:20]}  Kh7 {[%clk 0:00:33]} 21. Nc3 {[%clk 0:01:13]}  Nc5 {[%clk 0:00:24]} 22. a3 {[%clk 0:01:03]}  Bxc3 {[%clk 0:00:18]} 23. Bxc3 {[%clk 0:01:03]}  e4 {[%clk 0:00:11]} 24. Bd4 {[%clk 0:00:46]}  Nd3+ {[%clk 0:00:07]} 25. Qxd3 {[%clk 0:00:45]}  exd3 {[%clk 0:00:06]} 26. Bxb6 {[%clk 0:00:45]}  axb6 {[%clk 0:00:07]} 27. Be4 {[%clk 0:00:35]}  Rc2 {[%clk 0:00:04]} 28. Bxd3 {[%clk 0:00:33]}  Rxb2 {[%clk 0:00:05]} 29. Rc1 {[%clk 0:00:19]}  Kxh6 {[%clk 0:00:04]} 30. Rc7 {[%clk 0:00:19]}  Ra2 {[%clk 0:00:03]} 31. Rxb7 {[%clk 0:00:16]}  Rxa3 {[%clk 0:00:03]} 32. Kd2 {[%clk 0:00:17]}  Rb3 {[%clk 0:00:03]} 33. Rc7 {[%clk 0:00:15]}  Bg4 {[%clk 0:00:03]} 34. Rc6 {[%clk 0:00:14]}  Bh5 {[%clk 0:00:03]} 35. f4 {[%clk 0:00:13]}  Rb2+ {[%clk 0:00:04]} 36. Kc3 {[%clk 0:00:12]}  Rxh2 {[%clk 0:00:03]} 37. Rxb6 {[%clk 0:00:13]}  Rh3 {[%clk 0:00:04]} 38. Kd4 {[%clk 0:00:13]}  Rh1 {[%clk 0:00:04]} 39. f5 {[%clk 0:00:12]}  Rd1 {[%clk 0:00:04]} 40. Kc3 {[%clk 0:00:09]}  Kg7 {[%clk 0:00:03]} 41. f6+ {[%clk 0:00:08]}  Kh6 {[%clk 0:00:00]} 42. Rb8 {[%clk 0:00:07]} 1-0


[Site "https://www.chess.com"]

[Event "Titled Tuesday Blitz August 22 Late 2023"]
[White "Tologon tegin, Semetei"]
[Black "WindWhistler11"]
[WhiteFideId "13800574"]
[WhiteElo "2609"]
[BlackElo "2497"]
[Result "1-0"]
[Round "9"]
[TimeControl "180+1"]
[Date "2023.08.22"]
[WhiteClock "0:00:04"]
[BlackClock "0:00:00"]
[Board "55"]

1. d4 {[%clk 0:03:00]}  Nf6 {[%clk 0:02:56]} 2. Nc3 {[%clk 0:03:01]}  e6 {[%clk 0:02:56]} 3. Bf4 {[%clk 0:03:01]}  a6 {[%clk 0:02:56]} 4. a3 {[%clk 0:03:01]}  Bd6 {[%clk 0:02:51]} 5. Bxd6 {[%clk 0:02:49]}  cxd6 {[%clk 0:02:52]} 6. e4 {[%clk 0:02:49]}  b5 {[%clk 0:02:47]} 7. e5 {[%clk 0:02:44]}  Ng8 {[%clk 0:02:39]} 8. Qg4 {[%clk 0:02:40]}  Kf8 {[%clk 0:02:35]} 9. exd6 {[%clk 0:02:34]}  Qb6 {[%clk 0:02:31]} 10. Qf4 {[%clk 0:02:27]}  Nf6 {[%clk 0:02:28]} 11. Nf3 {[%clk 0:02:24]}  Bb7 {[%clk 0:02:25]} 12. Be2 {[%clk 0:02:24]}  Ne8 {[%clk 0:02:19]} 13. Ng5 {[%clk 0:01:42]}  Nxd6 {[%clk 0:02:05]} 14. Bf3 {[%clk 0:01:17]}  f6 {[%clk 0:01:50]} 15. Bxb7 {[%clk 0:01:08]}  Nxb7 {[%clk 0:01:50]} 16. O-O-O {[%clk 0:01:01]}  Ke7 {[%clk 0:01:35]} 17. Nge4 {[%clk 0:00:59]}  Rc8 {[%clk 0:01:31]} 18. h4 {[%clk 0:00:52]}  d5 {[%clk 0:01:23]} 19. Ng3 {[%clk 0:00:48]}  Qd6 {[%clk 0:01:19]} 20. Qg4 {[%clk 0:00:47]}  Kf7 {[%clk 0:01:13]} 21. Nh5 {[%clk 0:00:34]}  Rg8 {[%clk 0:01:02]} 22. Rh3 {[%clk 0:00:31]}  Nd7 {[%clk 0:00:58]} 23. Re3 {[%clk 0:00:21]}  Rae8 {[%clk 0:00:53]} 24. Nf4 {[%clk 0:00:21]}  Na5 {[%clk 0:00:47]} 25. Qh5+ {[%clk 0:00:20]}  g6 {[%clk 0:00:44]} 26. Qxh7+ {[%clk 0:00:18]}  Rg7 {[%clk 0:00:45]} 27. Qh6 {[%clk 0:00:19]}  Nc4 {[%clk 0:00:45]} 28. Re2 {[%clk 0:00:18]}  b4 {[%clk 0:00:46]} 29. Ncxd5 {[%clk 0:00:15]}  bxa3 {[%clk 0:00:41]} 30. Kb1 {[%clk 0:00:06]}  Nxb2 {[%clk 0:00:25]} 31. Rde1 {[%clk 0:00:05]}  Nf8 {[%clk 0:00:24]} 32. Nxf6 {[%clk 0:00:03]}  Kxf6 {[%clk 0:00:21]} 33. Nh5+ {[%clk 0:00:03]}  Ke7 {[%clk 0:00:17]} 34. Qxg7+ {[%clk 0:00:03]}  Kd8 {[%clk 0:00:17]} 35. Qf6+ {[%clk 0:00:04]}  Kc8 {[%clk 0:00:14]} 36. Ng7 {[%clk 0:00:04]}  Qb4 {[%clk 0:00:08]} 37. d5 {[%clk 0:00:04]}  Nc4+ {[%clk 0:00:00]} 38. Ka2 {[%clk 0:00:04]} 1-0


[Site "https://www.chess.com"]